bitfinex/quotes_SOLUSD_20240716
["timestamp","ask_amount","ask_price","bid_price","bid_amount"]
[1721156526450,1.54123029,162.23,162.15,0.34]
[1721156527349,1.54123036,162.24,162.16,1.00263644]
[1721156527646,1.54122828,162.23,162.15,0.34]
[1721156528026,1.54122828,162.23,162.14,65.0]
[1721156529354,1.54122828,162.23,162.15,1.0030411]
[1721156530760,1.54122828,162.23,162.14,65.0]
[1721156531254,1.54122828,162.23,162.15,1.00304758]
[1721156531752,1.54139907,162.24,162.16,29.24]
[1721156531962,1.54122342,162.23,162.17,45.0]
[1721156532555,1.54122342,162.23,162.18,1.0026201]
[1721156532934,1.54122523,162.24,162.18,1.0026201]
[1721156533147,1.54122943,162.23,162.17,45.0]
[1721156533958,1.54122943,162.23,162.16,29.24]
[1721156534129,1.54122901,162.24,162.17,45.0]
[1721156534335,1.54122901,162.23,162.17,45.0]
[1721156535365,1.54122901,162.23,162.14,20.34]
[1721156535366,1.54122901,162.23,162.14,20.0]
[1721156535655,1.54122901,162.23,162.15,46.00304406]
[1721156535859,1.54122901,162.23,162.16,20.0]
[1721156537468,1.54122901,162.23,162.13,29.24]
[1721156537760,1.54122901,162.23,162.14,65.0]
[1721156539972,1.54122901,162.23,162.15,1.00304279]
[1721156540259,6.1645,162.22,162.14,65.0]
[1721156540462,1.54145653,162.21,162.14,65.0]
[1721156540674,1.54145653,162.2,162.14,65.0]
[1721156540842,10.0,162.24,162.15,1.00316976]
[1721156540843,1.54145258,162.22,162.15,1.00316976]
[1721156541237,1.54145258,162.22,162.14,65.0]
[1721156541664,1.54145457,162.24,162.14,65.0]
[1721156541866,1.54121648,162.23,162.15,1.34260312]
[1721156542167,1.54121913,162.24,162.16,29.24]
[1721156542469,1.54121913,162.24,162.17,66.00241376]
[1721156542765,1.54121913,162.24,162.18,1.00237059]
[1721156542950,22.6371,162.25,162.17,65.0]
[1721156543156,22.6371,162.25,162.19,29.24]
[1721156543337,22.6371,162.25,162.2,65.0]
[1721156543538,1.54099314,162.24,162.2,20.0]
[1721156543756,22.6371,162.25,162.2,21.00230472]
[1721156544351,22.6371,162.25,162.23,14.62]
[1721156544737,16.6083,162.25,162.24,14.62]
[1721156544943,16.1615,162.3,162.24,14.62]
[1721156544944,22.92434468,162.29,162.24,14.62]
[1721156545149,22.92434468,162.29,162.25,14.62]
[1721156545951,22.92434468,162.29,162.2,20.0]
[1721156545952,22.92434468,162.29,162.26,14.62]
[1721156546147,1.54075629,162.28,162.26,14.62]
[1721156546471,1.54075629,162.28,162.21,30.2215615]
[1721156546668,1.54075629,162.28,162.22,20.0]
[1721156546969,1.54075629,162.28,162.22,21.00168514]
[1721156547351,21.3834,162.29,162.23,1.00164758]
[1721156547559,21.3834,162.29,162.24,1.0010423]
[1721156547753,21.3834,162.29,162.24,21.0010423]
[1721156548585,22.4317,162.32,162.24,49.22]
[1721156548870,6.1591,162.37,162.27,29.22]
[1721156548871,1.54019584,162.35,162.27,29.22]
[1721156549047,1.54019584,162.35,162.28,45.0]
[1721156549862,1.54014313,162.36,162.28,45.0]
[1721156550061,11.54013723,162.36,162.28,45.0]
[1721156550262,1.54022595,162.35,162.28,45.0]
[1721156553671,1.54022595,162.35,162.29,1.00018828]
[1721156554257,1.54022595,162.35,162.28,45.0]
[1721156554659,1.54022595,162.35,162.29,1.00019269]
[1721156555067,1.54020938,162.36,162.29,1.00019269]
[1721156555273,1.54002745,162.35,162.29,20.0]
[1721156556668,1.15610521,162.34,162.29,21.00019051]
[1721156556954,1.54017115,162.36,162.29,21.00019051]
[1721156557165,1.54016813,162.35,162.29,21.00019051]
[1721156557672,1.54016813,162.35,162.29,20.0]
[1721156558055,16.1601,162.34,162.21,16.5717]
[1721156558257,1.54057168,162.33,162.21,45.7917]
[1721156558481,1.54057442,162.32,162.21,45.7917]
[1721156559175,10.0,162.27,162.19,6.40927137]
[1721156559360,1.54120892,162.26,162.19,6.40927137]
[1721156559565,1.54120892,162.26,162.15,29.22]
[1721156559875,1.54120892,162.26,162.16,6.41383145]
[1721156560579,1.54120892,162.26,162.17,45.0]
[1721156560881,1.54120892,162.26,162.18,20.0]
[1721156561973,1.54097806,162.28,162.19,46.00203092]
[1721156562183,1.54097806,162.28,162.2,20.0]
[1721156562362,1.54097806,162.28,162.21,1.00188226]
[1721156562563,1.54097806,162.28,162.2,20.0]
[1721156562875,7.70317806,162.28,162.2,20.0]
[1721156563079,16.1626,162.27,162.19,45.0]
[1721156563264,1.54114415,162.26,162.17,0.17]
[1721156563575,1.54114415,162.26,162.17,45.17]
[1721156564197,1.54095999,162.28,162.17,45.17]
[1721156564489,1.54095999,162.28,162.18,21.34198756]
[1721156564688,1.54095999,162.28,162.19,45.0]
[1721156564868,1.54095999,162.28,162.2,21.00173191]
[1721156565185,1.54086267,162.27,162.21,1.00175398]
[1721156565494,7.70238216,162.3,162.21,1.00175398]
[1721156565685,17.70280133,162.29,162.2,20.0]
[1721156565856,1.54090133,162.29,162.21,1.0018461]
[1721156566061,1.54090133,162.29,162.21,46.0018461]
[1721156567176,17.70280133,162.29,162.21,45.0]
[1721156568191,10.0,162.26,162.2,20.0]
[1721156568484,21.2312,162.24,162.16,35.63383145]
[1721156568659,1.54120824,162.23,162.17,20.0]
[1721156568862,1.54120824,162.23,162.16,6.41383145]
[1721156570661,1.54120824,162.23,162.13,29.22]
[1721156570859,1.54120824,162.23,162.14,20.0]
[1721156571187,1.54120824,162.23,162.14,26.41754291]
[1721156571373,1.54120824,162.23,162.15,45.0]
[1721156571574,1.54120824,162.23,162.16,20.0]
[1721156572378,10.0,162.22,162.16,20.0]
[1721156572572,1.54152675,162.21,162.15,20.0]
[1721156572793,1.54152675,162.2,162.15,20.0]
[1721156572969,1.54147364,162.23,162.15,20.0]
[1721156573792,10.0,162.22,162.15,20.0]
[1721156573970,1.54152868,162.21,162.15,20.0]
[1721156574292,1.54152868,162.2,162.15,20.0]
[1721156574772,1.54152868,162.2,162.11,20.0]
[1721156574974,1.54152868,162.2,162.12,45.0]
[1721156575195,1.54160454,162.19,162.13,20.0]
[1721156575898,1.54160454,162.19,162.12,20.0]
[1721156576474,1.54160454,162.19,162.12,21.00393557]
[1721156576788,1.54161053,162.18,162.12,20.0]
[1721156576989,10.0,162.2,162.12,20.0]
[1721156577200,1.54177234,162.19,162.12,20.0]
[1721156580377,1.54159694,162.21,162.13,45.0]
[1721156580691,1.54159141,162.2,162.13,45.0]
[1721156581069,1.54151696,162.21,162.13,74.22]
[1721156581281,1.54145701,162.2,162.13,74.22]
[1721156581691,1.54148954,162.23,162.13,74.22]
[1721156581892,1.54148954,162.23,162.14,1.00325847]
[1721156582091,1.54148954,162.23,162.13,74.22]
[1721156582286,1.54148954,162.23,162.14,1.00306794]
[1721156582493,1.54148954,162.23,162.15,1.00307537]
[1721156583011,1.54148954,162.23,162.16,1.00305904]
[1721156583170,1.54148954,162.23,162.15,45.0]
[1721156583373,1.54148954,162.23,162.15,46.00299478]
[1721156584192,1.54148954,162.23,162.16,0.196078]
[1721156584381,1.54148954,162.23,162.16,1.19904361]
[1721156584786,7.70568954,162.23,162.16,0.196078]
[1721156585281,1.54148954,162.23,162.16,1.19905015]
[1721156585680,1.54148954,162.23,162.16,21.19905015]
[1721156585884,22.77243511,162.24,162.17,45.0]
[1721156586390,22.77243511,162.24,162.18,1.00246227]
[1721156586975,21.2312,162.24,162.17,45.0]
[1721156587196,21.2312,162.24,162.19,29.22]
[1721156587400,23.7231405,162.28,162.2,66.00194077]
[1721156587700,23.7231405,162.28,162.21,1.00158152]
[1721156587902,29.8854405,162.28,162.21,1.00158152]
[1721156588298,1.15537593,162.27,162.21,1.00167217]
[1721156591207,7.31827593,162.27,162.21,1.00167217]
[1721156591394,7.31827593,162.27,162.2,65.0]
[1721156591790,1.15537593,162.27,162.2,65.0]
[1721156592582,1.15537593,162.27,162.21,1.00164997]
[1721156592779,22.1822,162.28,162.2,65.0]
[1721156592995,22.1822,162.28,162.21,0.34]
[1721156593997,22.1822,162.28,162.21,1.34117944]
[1721156596090,22.1822,162.28,162.22,29.22]
[1721156596294,22.1822,162.28,162.23,66.00100896]
[1721156596512,6.6214,162.28,162.16,6.60855142]
[1721156596714,7.70325238,162.27,162.18,29.22]
[1721156597016,1.15576405,162.26,162.18,29.22]
[1721156597217,1.15576405,162.26,162.19,1.001853]
[1721156597586,1.54090245,162.27,162.19,1.001853]
[1721156597909,1.54090364,162.26,162.19,45.0]
[1721156598297,1.54090364,162.26,162.23,14.62]
[1721156598817,1.54090253,162.27,162.23,14.62]
[1721156598999,1.54086161,162.26,162.24,14.62]
[1721156599413,1.54086161,162.26,162.23,14.62]
[1721156600116,1.54090062,162.27,162.24,14.62]
[1721156600296,1.54089908,162.26,162.2,20.0]
[1721156600499,1.54089908,162.26,162.21,45.0]
[1721156600712,1.54089861,162.27,162.21,45.0]
[1721156601316,1.54088719,162.26,162.21,45.0]
[1721156602007,1.54088719,162.26,162.21,46.00183124]
[1721156602215,8.16218531,162.28,162.21,46.00156833]
[1721156602602,8.16218531,162.28,162.21,45.0]
[1721156603512,8.16218531,162.28,162.21,46.00183521]
[1721156603714,6.6214,162.28,162.21,46.00183521]
[1721156604115,1.54079656,162.27,162.21,46.00183521]
[1721156604521,6.6214,162.28,162.22,0.17]
[1721156604722,6.6214,162.28,162.22,20.34]
[1721156604911,6.6214,162.28,162.23,45.0]
[1721156605312,6.6214,162.28,162.22,20.0]
[1721156605610,6.6214,162.28,162.23,45.0]
[1721156606013,8.16199128,162.28,162.23,45.0]
[1721156606205,8.16199128,162.28,162.22,20.0]
[1721156606417,1.54079552,162.27,162.22,20.0]
[1721156607447,6.6214,162.28,162.22,20.0]
[1721156608731,6.6214,162.28,162.22,21.0015342]
[1721156609107,1.54073599,162.27,162.22,20.0]
[1721156609342,1.54073599,162.27,162.18,6.41318206]
[1721156609343,1.54101828,162.26,162.18,35.64318206]
[1721156609535,1.54101828,162.26,162.19,45.0]
[1721156610617,7.70391828,162.26,162.19,45.0]
[1721156611021,7.70391828,162.26,162.18,6.41318206]
[1721156611440,1.54101828,162.26,162.18,6.41318206]
[1721156611752,1.54101828,162.26,162.19,45.0]
[1721156616141,1.54101828,162.26,162.2,1.00205563]
[1721156616449,1.54101828,162.26,162.21,1.00181963]
[1721156616644,1.54101828,162.26,162.19,45.0]
[1721156617530,11.54101828,162.26,162.19,45.0]
[1721156617735,7.70401828,162.26,162.18,6.41318206]
[1721156617922,6.1636,162.25,162.18,6.41318206]
[1721156618125,1.54117125,162.24,162.18,6.41318206]
[1721156618428,1.54127645,162.23,162.18,6.41318206]
[1721156618634,16.3281,162.21,162.18,6.41318206]
[1721156618830,17.86944953,162.21,162.16,0.196078]
[1721156619031,1.54133853,162.2,162.16,0.196078]
[1721156619666,11.54133853,162.2,162.16,0.196078]
[1721156619835,10.0,162.18,162.16,0.196078]
[1721156620026,1.54188542,162.17,162.16,0.196078]
[1721156620453,7.94448542,162.17,162.16,0.196078]
[1721156621161,30.59298542,162.17,162.16,0.196078]
[1721156621326,16.167,162.16,162.05,29.23]
[1721156621521,1.54215272,162.15,162.07,6.41632072]
[1721156621722,1.54215272,162.14,162.07,6.41632072]
[1721156622125,11.54215272,162.14,162.05,29.23]
[1721156622360,11.54215272,162.14,162.05,35.64742378]
[1721156623449,10.0,162.12,162.05,35.64742378]
[1721156623651,22.6226,162.1,162.05,6.41742378]
[1721156623829,1.54252745,162.09,162.05,6.41742378]
[1721156624029,1.54252745,162.09,162.02,29.23]
[1721156624358,1.54252745,162.09,162.01,6.4212736]
[1721156625371,1.54252745,162.09,162.02,29.23]
[1721156625743,22.6226,162.1,162.02,29.23]
[1721156626065,22.6226,162.1,162.01,6.4212736]
[1721156626066,1.54231174,162.13,162.05,29.23]
[1721156626361,1.54231174,162.13,162.06,20.0]
[1721156626566,1.54231174,162.13,162.07,45.0]
[1721156628034,6.1613,162.14,162.08,30.23478275]
[1721156628233,6.1613,162.14,162.09,45.0]
[1721156628449,6.1613,162.14,162.1,1.00425425]
[1721156628666,6.1613,162.14,162.09,45.0]
[1721156628851,7.70328056,162.14,162.09,45.0]
[1721156629049,6.1613,162.14,162.1,1.00475065]
[1721156629253,6.1613,162.14,162.11,1.00447301]
[1721156629569,6.1613,162.14,162.1,1.00447227]
[1721156629747,6.1613,162.14,162.09,46.00431833]
[1721156629943,6.4335,162.19,162.09,45.0]
[1721156630157,6.4335,162.19,162.11,29.23]
[1721156630453,6.4335,162.19,162.12,66.17323644]
[1721156630652,6.4335,162.19,162.12,66.34323644]
[1721156631052,6.4335,162.19,162.12,65.34]
[1721156631250,6.4335,162.19,162.13,1.00328855]
[1721156631574,6.4335,162.19,162.12,65.34]
[1721156631775,1.54156699,162.18,162.12,65.0]
[1721156631975,1.54185891,162.17,162.08,29.23]
[1721156632187,6.1668,162.16,162.05,29.23]
[1721156632345,1.5421036,162.15,162.05,29.23]
[1721156632545,1.54209164,162.14,162.05,29.23]
[1721156633078,22.1269,162.13,162.05,29.23]
[1721156633249,1.54232605,162.12,162.05,29.23]
[1721156634366,1.54232605,162.12,162.06,20.0]
[1721156634568,1.54232605,162.12,162.03,20.0]
[1721156634870,1.54232605,162.12,162.04,45.17]
[1721156635284,1.54232605,162.12,162.05,20.0]
[1721156635486,1.54232605,162.12,162.06,45.0]
[1721156635783,1.54232605,162.12,162.05,20.0]
[1721156636077,1.54232605,162.12,162.03,20.0]
[1721156636274,1.54232605,162.12,162.04,45.0]
[1721156636482,1.54232605,162.12,162.05,20.0]
[1721156636773,1.54232605,162.12,162.06,45.0]
[1721156637286,1.54232605,162.12,162.05,20.0]
[1721156637574,1.54232605,162.12,162.03,20.0]
[1721156637742,1.54232605,162.12,162.04,45.0]
[1721156637946,22.1269,162.13,162.05,49.57]
[1721156638146,22.1269,162.13,162.06,45.0]
[1721156640379,1.54216024,162.15,162.08,29.23]
[1721156640684,22.6641,162.17,162.09,45.0]
[1721156640685,1.54209261,162.16,162.09,45.0]
[1721156641677,1.54209261,162.16,162.1,1.00434281]
[1721156642048,1.54209261,162.16,162.11,1.00408625]
[1721156642550,1.54209261,162.16,162.09,45.0]
[1721156643165,22.6641,162.17,162.1,1.00414634]
[1721156643384,22.6641,162.17,162.11,1.00395539]
[1721156643781,22.6641,162.17,162.12,1.00371791]
[1721156644385,22.6641,162.17,162.11,74.23]
[1721156645484,22.6641,162.17,162.12,20.0]
[1721156645782,22.6641,162.17,162.13,46.00349691]
[1721156646377,22.6641,162.17,162.13,45.0]
[1721156648082,1.54158911,162.21,162.14,30.23349744]
[1721156648382,1.54158911,162.21,162.15,46.00300829]
[1721156648863,6.1918,162.22,162.12,20.17]
[1721156648864,1.54133137,162.2,162.12,20.0]
[1721156649193,1.54133137,162.2,162.13,29.23]
[1721156649480,1.54133137,162.2,162.14,20.0]
[1721156650469,1.54155,162.21,162.14,20.0]
[1721156651000,1.54155001,162.2,162.14,21.0034036]
[1721156651290,1.54155001,162.21,162.14,20.0]
[1721156651458,1.54143564,162.2,162.15,45.0]
[1721156651658,1.54143564,162.2,162.14,20.0]
[1721156652761,1.54161783,162.21,162.14,21.00356637]
[1721156652968,1.54146358,162.2,162.14,21.00356637]
[1721156653275,1.54146724,162.21,162.14,21.00356637]
[1721156653478,1.54146724,162.21,162.15,45.0]
[1721156653691,7.73322106,162.22,162.15,46.00293103]
[1721156654465,6.1918,162.22,162.16,29.23]
[1721156654765,6.1918,162.22,162.17,66.00247409]
[1721156654967,6.1918,162.22,162.18,1.00228867]
[1721156655169,6.1918,162.22,162.17,65.0]
[1721156655883,15.7442,162.23,162.17,65.0]
[1721156656061,15.7442,162.23,162.17,66.0022088]
[1721156656262,15.7442,162.23,162.18,1.0022088]
[1721156656566,6.5243,162.26,162.19,29.23]
[1721156656759,6.5243,162.26,162.2,46.00187843]
[1721156656985,6.5243,162.26,162.2,45.0]
[1721156657686,1.54091475,162.25,162.2,45.0]
[1721156657872,1.54091475,162.25,162.17,20.0]
[1721156658187,1.54091475,162.25,162.18,45.0]
[1721156658489,1.54091475,162.25,162.19,20.0]
[1721156660189,8.06537633,162.26,162.19,20.0]
[1721156660399,8.06537633,162.26,162.2,45.0]
[1721156661259,1.1552401,162.25,162.19,20.0]
[1721156661480,1.1552401,162.25,162.17,20.0]
[1721156661695,1.1552401,162.25,162.18,45.0]
[1721156661896,1.1552401,162.25,162.19,20.0]
[1721156662081,1.1552401,162.25,162.18,45.0]
[1721156662407,1.1552401,162.25,162.17,45.0]
[1721156662577,1.1552401,162.25,162.18,20.0]
[1721156662779,1.1552401,162.25,162.19,45.0]
[1721156665413,1.1552401,162.25,162.14,29.23]
[1721156665414,6.1637,162.24,162.14,29.23]
[1721156665707,10.0,162.21,162.11,29.23]
[1721156665880,1.54168147,162.2,162.11,29.23]
[1721156666273,21.494,162.19,162.11,29.23]
[1721156666489,11.54191817,162.18,162.1,6.41502993]
[1721156666693,1.54192323,162.17,162.1,6.41502993]
[1721156666868,10.0,162.16,162.1,6.41502993]
[1721156667069,1.54212225,162.15,162.05,29.23]
[1721156667407,1.54212225,162.15,162.03,260.8]
[1721156667408,1.54218983,162.14,162.06,6.41719363]
[1721156668696,1.54218983,162.14,162.07,45.0]
[1721156669802,1.54218983,162.14,162.08,20.0]
[1721156671288,1.54223106,162.15,162.09,45.0]
[1721156671793,1.54201292,162.17,162.09,45.0]
[1721156672978,1.54184181,162.18,162.1,49.23]
[1721156673199,21.494,162.19,162.11,45.0]
[1721156673200,1.54177743,162.17,162.11,45.0]
[1721156673408,1.54177621,162.18,162.12,1.00394647]
[1721156673706,21.494,162.19,162.12,1.0036435]
[1721156674008,21.494,162.19,162.12,20.0]
[1721156674198,21.494,162.19,162.13,45.0]
[1721156674496,6.4033,162.19,162.15,29.23]
[1721156674916,6.4033,162.19,162.15,30.23310605]
[1721156675115,22.8307,162.23,162.16,1.00310837]
[1721156675412,22.8307,162.23,162.16,66.0025305]
[1721156675630,6.5283,162.23,162.18,29.23]
[1721156675784,6.5283,162.23,162.19,20.0]
[1721156676091,1.54109295,162.26,162.19,20.0]
[1721156676295,1.54109295,162.26,162.2,45.0]
[1721156676677,11.54109295,162.26,162.19,20.0]
[1721156676897,11.54109295,162.26,162.15,29.23]
[1721156677098,11.54109295,162.26,162.16,65.0]
[1721156677300,1.54109295,162.26,162.18,29.23]
[1721156677520,1.54109295,162.26,162.19,65.0]
[1721156677729,11.54109295,162.26,162.19,20.0]
[1721156679613,1.54109295,162.26,162.19,20.0]
[1721156680009,1.54109295,162.26,162.19,21.00221186]
[1721156680215,1.54109295,162.26,162.19,20.0]
[1721156680437,1.54109295,162.26,162.2,45.0]
[1721156680931,1.54109295,162.26,162.2,46.00197601]
[1721156681139,1.54109295,162.26,162.21,1.00197601]
[1721156681320,1.54109295,162.26,162.21,21.00197601]
[1721156681701,16.83540206,162.27,162.21,21.00197601]
[1721156681923,1.54090206,162.26,162.21,21.00197601]
[1721156682208,1.54090206,162.26,162.21,20.0]
[1721156682408,16.83540244,162.27,162.21,21.00184944]
[1721156682616,15.2945,162.27,162.21,21.00184944]
[1721156682911,15.2945,162.27,162.22,45.0]
[1721156683722,15.2945,162.27,162.22,46.00157031]
[1721156683932,16.83526637,162.27,162.22,46.00157031]
[1721156684137,16.83526637,162.27,162.22,45.0]
[1721156684812,15.2945,162.27,162.22,46.00161014]
[1721156685632,15.2945,162.27,162.22,46.00139435]
[1721156686435,15.2945,162.27,162.22,46.00151911]
[1721156688013,15.2945,162.27,162.22,45.0]
[1721156689421,15.2945,162.27,162.21,20.0]
[1721156689422,1.54077539,162.26,162.21,20.0]
[1721156689632,1.54077539,162.26,162.18,49.23]
[1721156689841,15.2945,162.27,162.19,46.17177773]
[1721156689842,16.83537257,162.27,162.19,46.17177773]
[1721156690049,1.54087257,162.26,162.2,20.0]
[1721156690246,16.83539694,162.27,162.21,46.00183624]
[1721156690539,15.2945,162.27,162.21,45.0]
[1721156690746,1.54080596,162.26,162.21,45.0]
[1721156691109,16.83539685,162.27,162.21,46.00183601]
[1721156691411,15.2945,162.27,162.21,45.0]
[1721156692244,16.83520607,162.27,162.21,45.0]
[1721156692421,1.54070607,162.26,162.21,45.0]
[1721156694618,15.2945,162.27,162.21,45.0]
[1721156694821,15.2945,162.27,162.21,74.23]
[1721156695218,16.83521688,162.27,162.21,74.23]
[1721156695662,15.2945,162.27,162.21,74.23]
[1721156695942,16.83521672,162.27,162.21,74.23]
[1721156696447,1.54075418,162.26,162.21,74.23]
[1721156698325,16.83533145,162.27,162.21,74.23]
[1721156699521,1.54083118,162.26,162.21,74.23]
[1721156699849,11.54083118,162.26,162.14,15.4247]
[1721156700060,11.54083118,162.26,162.15,29.23]
[1721156701126,1.54083118,162.26,162.22,14.62]
[1721156701361,1.54083118,162.26,162.24,14.62]
[1721156701544,1.54083118,162.26,162.16,58.48]
[1721156701545,16.8354174,162.27,162.25,14.62]
[1721156701730,16.83525863,162.27,162.25,14.62]
[1721156702235,16.83525863,162.27,162.14,33.9547]
[1721156702436,15.2945,162.27,162.2,29.23]
[1721156702626,15.2945,162.27,162.21,65.0]
[1721156703167,15.2945,162.27,162.23,29.23]
[1721156703348,15.2945,162.27,162.24,45.0]
[1721156703937,6.0795,162.28,162.24,45.0]
[1721156704138,16.56393057,162.31,162.24,45.0]
[1721156704340,16.56393057,162.31,162.25,21.1968357]
[1721156706241,15.0234,162.31,162.26,74.23]
[1721156706439,15.0234,162.31,162.27,20.0]
[1721156706752,15.0234,162.31,162.28,45.0]
[1721156707157,16.56363608,162.31,162.27,20.0]
[1721156707627,16.56363608,162.31,162.25,0.196079]
[1721156707824,1.54023608,162.31,162.25,0.196079]
[1721156708046,21.4881,162.36,162.26,29.23]
[1721156708357,21.4881,162.36,162.29,29.23]
[1721156708762,21.4881,162.36,162.3,45.0]
[1721156711243,1.53995071,162.35,162.29,29.23]
[1721156711638,23.02812316,162.36,162.29,29.23]
[1721156711835,23.02812316,162.36,162.3,45.0]
[1721156712059,1.54001378,162.35,162.3,45.0]
[1721156712354,1.54001378,162.35,162.27,20.0]
[1721156712544,1.54001378,162.35,162.25,20.196079]
[1721156712851,1.54001378,162.35,162.26,45.0]
[1721156713055,1.54001378,162.35,162.27,20.0]
[1721156713837,1.54001378,162.35,162.28,45.0]
[1721156716260,1.54001378,162.35,162.27,49.23]
[1721156716934,1.54001378,162.35,162.25,0.196079]
[1721156717343,7.69961378,162.35,162.25,0.196079]
[1721156717561,1.54001378,162.35,162.25,0.196079]
[1721156717741,7.69951378,162.35,162.25,0.196079]
[1721156718363,1.54001378,162.35,162.25,65.196079]
[1721156720334,21.4881,162.36,162.27,29.23]
[1721156720555,1.5399562,162.35,162.28,65.0]
[1721156721037,1.53995865,162.35,162.28,65.0]
[1721156725757,21.4881,162.36,162.28,65.0]
[1721156726237,21.4881,162.36,162.3,29.23]
[1721156726570,21.4881,162.36,162.31,65.99914549]
[1721156727462,21.4881,162.36,162.31,65.0]
[1721156728666,21.4881,162.36,162.32,0.99916259]
[1721156728854,21.4881,162.36,162.31,65.0]
[1721156729051,1.53981483,162.35,162.31,65.0]
[1721156729245,1.53981483,162.35,162.31,20.0]
[1721156729442,1.53994969,162.35,162.28,20.0]
[1721156729654,1.53994969,162.35,162.29,45.0]
[1721156729950,1.53994969,162.35,162.3,20.0]
[1721156730440,10.0,162.34,162.25,0.196079]
[1721156730643,1.54037853,162.33,162.25,0.196079]
[1721156730861,1.54037744,162.32,162.25,0.196079]
[1721156731144,1.54036473,162.35,162.25,0.196079]
[1721156731962,1.54036473,162.35,162.25,1.19652485]
[1721156732168,1.54036473,162.35,162.25,21.19652485]
[1721156732752,10.0,162.33,162.25,20.196079]
[1721156732964,1.54048269,162.32,162.26,1.00084203]
[1721156733183,1.54048031,162.34,162.25,20.196079]
[1721156734164,1.54017015,162.35,162.25,20.196079]
[1721156734353,1.54017015,162.35,162.26,45.0]
[1721156734647,1.54017015,162.35,162.27,20.0]
[1721156734847,1.54017015,162.35,162.28,45.0]
[1721156737453,1.5400874,162.35,162.28,45.0]
[1721156737656,1.5400874,162.35,162.29,20.0]
[1721156738563,23.02816403,162.36,162.29,20.0]
[1721156738747,1.54006403,162.35,162.29,20.0]
[1721156739365,11.54006403,162.35,162.26,29.23]
[1721156739551,10.0,162.33,162.27,20.0]
[1721156739758,10.0,162.33,162.25,0.196079]
[1721156739759,23.1467,162.31,162.25,0.196079]
[1721156739973,1.54054205,162.3,162.25,0.196079]
[1721156740153,23.1467,162.31,162.25,0.196079]
[1721156740757,1.54038749,162.3,162.25,0.196079]
[1721156741066,1.54057585,162.3,162.25,20.196079]
[1721156741262,1.54057585,162.29,162.25,20.196079]
[1721156741464,1.5405866,162.3,162.25,20.196079]
[1721156743260,23.1467,162.31,162.26,45.0]
[1721156744479,23.1467,162.31,162.26,74.23]
[1721156744778,23.1467,162.31,162.27,20.0]
[1721156744971,23.1467,162.31,162.28,45.0]
[1721156748165,23.1467,162.31,162.27,20.0]
[1721156748363,1.54037823,162.3,162.27,20.0]
[1721156748762,1.54037823,162.3,162.25,0.196079]
[1721156753675,23.1467,162.31,162.25,0.196079]
[1721156753874,23.1467,162.31,162.25,45.196079]
[1721156754084,23.1467,162.31,162.26,20.0]
[1721156756375,23.1467,162.31,162.3,14.61]
[1721156759518,23.1467,162.31,162.26,20.0]
[1721156759800,1.540557,162.3,162.28,14.61]
[1721156760713,24.68724826,162.31,162.29,14.61]
[1721156760891,23.1467,162.31,162.29,14.61]
[1721156761287,1.54041473,162.3,162.29,14.61]
[1721156761890,23.1467,162.31,162.29,14.61]
[1721156762406,23.1467,162.31,162.3,14.61]
[1721156764500,23.1467,162.31,162.29,14.61]
[1721156764807,1.54040088,162.3,162.25,0.196079]
[1721156765115,16.15065017,162.29,162.25,0.196079]
[1721156765622,24.61,162.28,162.25,0.196079]
[1721156765909,1.54095975,162.27,162.25,0.196079]
[1721156766108,1.54085422,162.26,162.25,14.806079]
[1721156766519,1.54082532,162.29,162.25,14.806079]
[1721156769827,16.15082532,162.29,162.25,0.196079]
[1721156770024,10.0,162.27,162.25,0.196079]
[1721156770317,1.54103418,162.26,162.25,0.196079]